fUSD/lending_fUSD_20240529
["ID","MTS","AMOUNT","RATE_DAILY","PERIOD"]
[328153490,1716948644902,-937.1942189,0.00035476,2]
[328153491,1716948644912,-151.0,0.00035476,7]
[328153493,1716948644921,-151.0,0.00035476,7]
[328153495,1716948644931,-1044.5556292,0.00035476,2]
[328153496,1716948644940,-1015.411198,0.00035476,2]
[328153498,1716948644949,-986.2667668,0.00035476,2]
[328153500,1716948644959,-957.1223356,0.00035476,2]
[328153501,1716948644968,-927.9779045,0.00035476,2]
[328153502,1716948644978,-151.0,0.00035476,7]
[328153504,1716948644988,-151.0,0.00035476,7]
[328153506,1716948644997,-824.7547353,0.00035476,2]
[328153508,1716948645006,-801.7430288,0.00035476,2]
[328153510,1716948645015,-778.7313222,0.00035476,2]
[328153512,1716948645024,-755.7196157,0.00035476,2]
[328153514,1716948645034,-732.7079091,0.00035476,2]
[328153516,1716948645043,-5598.5925564,0.00035476,2]
[328153518,1716948645052,-5460.1533767,0.00035476,2]
[328153520,1716948645062,-5321.7141971,0.00035476,2]
[328153522,1716948645071,-5183.2750174,0.00035476,2]
[328153524,1716948645083,-5044.8358378,0.00035476,2]
[328153527,1716948645094,-151.0,0.00035476,7]
[328153529,1716948645104,-180.876413,0.00035476,7]
[328153530,1716948645115,-186.634962,0.00035476,7]
[328153531,1716948645124,-450.27668552,0.00035497,2]
[328153532,1716948645134,-2000.0,0.00035497,2]
[328153533,1716948645144,-252.92451192,0.00035497,8]
[328153534,1716948645155,-3328.87,0.00035497,8]
[328153535,1716948645165,-500.0,0.00035497,2]
[328153536,1716948645175,-186.58988108,0.00035497,8]
[328153537,1716948645185,-500.0,0.00035497,2]
[328153538,1716948645196,-1335.91,0.00035497,8]
[328153539,1716948645207,-500.0,0.00035497,8]
[328153540,1716948645217,-150.0,0.00035497,7]
[328153541,1716948645227,-468.51665385,0.00035498,4]
[328153542,1716948645239,-1133.70568196,0.00035498,30]
[328153543,1716948645249,-1439.18491751,0.00035498,30]
[328153544,1716948645259,-2618.62134199,0.00035498,4]
[328153545,1716948645269,-212.13411741,0.00035498,2]
[328153546,1716948645279,-19460.24840341,0.00035498,4]
[328153547,1716948645289,-1219.2268753,0.00035498,4]
[328153548,1716948645300,-2352.38198944,0.00035498,4]
[328153549,1716948645312,-1000.0,0.00035498,4]
[328153550,1716948645323,-156.12519993,0.00035498,4]
[328153551,1716948645334,-155.51329316,0.00035498,4]
[328153552,1716948645344,-612.90667216,0.00035498,4]
[328153553,1716948645357,-7775.2626933,0.00035498,4]
[328153554,1716948645368,-615.85815273,0.00035498,4]
[328153555,1716948645378,-211.26630041,0.00035498,4]
[328153556,1716948645388,-186.66289923,0.00035498,4]
[328153557,1716948645399,-155.13964065,0.00035498,4]
[328153558,1716948645409,-790.6224508,0.00035498,4]
[328153559,1716948645421,-328.28979809,0.00035498,4]
[328153560,1716948645432,-155.2532147,0.00035498,4]
[328153561,1716948645442,-156.87132137,0.00035498,4]
[328153562,1716948645452,-155.21755502,0.00035498,4]
[328153563,1716948645462,-1107.59556592,0.00035498,4]
[328153564,1716948645473,-300.5225385,0.00035498,4]
[328153565,1716948645483,-158.45841934,0.00035498,4]
[328153566,1716948645497,-525.55095797,0.00035498,4]
[328153567,1716948645507,-10983.89747527,0.00035498,4]
[328153568,1716948645517,-155.32122099,0.00035498,2]
[328153569,1716948645527,-155.39783959,0.00035498,2]
[328153570,1716948645538,-622.84603537,0.00035498,4]
[328153571,1716948645548,-183403.02293,0.00035498,4]
[328153572,1716948645558,-206.329286,0.00035498,7]
[328153573,1716948645568,-151.0,0.00035498,7]
[328153574,1716948645579,-4233.54735962,0.00035498,2]
[328153575,1716948645589,-2000.0,0.00035499,2]
[328153576,1716948645599,-3328.87,0.00035499,8]
[328153577,1716948645608,-3328.87,0.00035499,8]
[328153578,1716948645618,-3328.87,0.00035499,8]
[328153579,1716948645628,-3328.87,0.00035499,8]
[328153580,1716948645638,-3328.87,0.00035499,8]
[328153581,1716948645649,-3328.87,0.00035499,8]
[328153582,1716948645658,-3328.87,0.00035499,8]
[328153583,1716948645668,-3328.87,0.00035499,8]
[328153584,1716948645679,-3328.87,0.00035499,8]
[328153585,1716948645689,-3328.87,0.00035499,8]
[328153586,1716948645698,-3328.87,0.00035499,8]
[328153587,1716948645709,-3328.87,0.00035499,8]
[328153588,1716948645718,-3328.87,0.00035499,8]
[328153589,1716948645729,-3328.87,0.00035499,8]
[328153590,1716948645739,-3328.87,0.00035499,8]
[328153591,1716948645748,-3328.87,0.00035499,8]
[328153592,1716948645758,-3328.87,0.00035499,8]
[328153593,1716948645768,-3328.87,0.00035499,8]
[328153594,1716948645778,-3328.87,0.00035499,8]
[328153595,1716948645787,-3328.87,0.00035499,8]
[328153596,1716948645797,-3328.96313228,0.00035499,8]
[328153597,1716948645807,-500.0,0.00035499,2]
[328153598,1716948645817,-500.0,0.00035499,2]
[328153599,1716948645827,-500.0,0.00035499,2]
[328153600,1716948645836,-287.22483525,0.00035499,2]
[328153601,1716948645846,-467.19468151,0.00035499,2]
[328153602,1716948645855,-1335.91,0.00035499,8]
[328153603,1716948645864,-1335.91,0.00035499,8]
[328153604,1716948645874,-1335.91,0.00035499,8]
[328153605,1716948645883,-1335.91,0.00035499,8]
[328153606,1716948645892,-1335.91,0.00035499,8]
[328153607,1716948645901,-1335.91,0.00035499,8]
[328153608,1716948645911,-1335.91,0.00035499,8]
[328153609,1716948645920,-1335.91,0.00035499,8]
[328153610,1716948645929,-1335.91,0.00035499,8]
[328153611,1716948645938,-1335.91,0.00035499,8]
[328153612,1716948645985,-1336.03523677,0.00035499,8]
[328153613,1716948645995,-500.0,0.00035499,8]
[328153614,1716948646004,-500.0,0.00035499,8]
[328153615,1716948646014,-500.0,0.00035499,8]
[328153616,1716948646024,-500.0,0.00035499,8]
[328153617,1716948646033,-500.0,0.00035499,8]
[328153618,1716948646042,-500.0,0.00035499,8]
[328153619,1716948646052,-500.0,0.00035499,8]
[328153620,1716948646061,-209.00284032,0.00035499,8]
[328153621,1716948646071,-150.0,0.00035499,7]
[328153622,1716948646080,-150.0,0.00035499,7]
[328153623,1716948646089,-150.0,0.00035499,7]
[328153624,1716948646099,-154.46250677,0.00035499,7]
[328153625,1716948646109,-2742.38454111,0.000355,5]
[328153626,1716948646118,-4486798.68284505,0.000355,5]
[328153627,1716948646133,-578.06080476,0.000355,5]
[328153628,1716948646164,-1592.8522795,0.00034548,2]
[328153629,1716948646649,-189.4277205,0.00034548,2]
[328153630,1716948646659,-416.3,0.00034548,2]
[328153632,1716948646668,-361.26,0.00034685,2]
[328153633,1716948646677,-691.96877338,0.00034685,2]
[328153635,1716948646689,-171.60122662,0.00034685,2]
[328153636,1716948646700,-306.92,0.00034685,2]
[328153637,1716948646711,-150.0,0.00034685,2]
[328153638,1716948646720,-163.78,0.00034685,2]
[328153639,1716948646729,-352.49,0.00034685,2]
[328153640,1716948646739,-407.69728565,0.00034999,4]
[328153641,1716948646749,-1188.68454537,0.00034999,4]
[328153642,1716948646759,-646.49208492,0.00034999,4]
[328153643,1716948646768,-2536.38771011,0.000355,5]
[328153644,1716948646778,-953.67,0.000355,5]
[328153645,1716948647920,13965.87784143,0.00013973,2]
[328153646,1716948649431,546.36242425,0.00013973,2]
[328153647,1716948662970,37522.24968756,0.00015,2]
[328153648,1716948678963,2194.59391361,0.00015,2]
[328153662,1716948818973,155.23,0.00013973,2]
[328153670,1716949335195,158.13,0.00013973,2]
[328153733,1716949799614,155.95,0.00013973,2]
[328153734,1716949831715,-203.99606146,0.000185,2]
[328153735,1716949831724,-158.13,0.00026274,2]
[328153736,1716949831733,-750.0,0.00027,2]
[328153737,1716949831742,-534.0,0.00028,5]
[328153738,1716949831750,-800.0,0.00029,2]
[328153739,1716949831759,-155.23,0.00029349,2]
[328153740,1716949831768,-155.43047834,0.0003,2]
[328153741,1716949831777,-5158.0634602,0.0003,2]
[328153742,1716949831790,-519.3499999,0.0003,2]
[328153743,1716949831800,-19.47402041,0.0003,2]
[328153744,1716949831809,-247.79,0.00030949,2]
[328153745,1716949831818,-4967.42698028,0.00030999,2]
[328153746,1716949831828,-729.46050023,0.00030999,2]
[328153747,1716949831839,-850.0,0.00031,2]
[328153748,1716949831849,-1007.25811232,0.00031443,2]
[328153749,1716949831858,-227.82108739,0.00031948,7]
[328153750,1716949831867,-166.48,0.00032578,2]
[328153751,1716949831876,-576.08,0.00032606,2]
[328153752,1716949831886,-250.0,0.00032678,2]
[328153753,1716949831895,-250.0,0.00032698,2]
[328153754,1716949831904,-187.21,0.0003275,120]
[328153755,1716949831913,-250.0,0.00032752,2]
[328153756,1716949831922,-886.48313862,0.00032874,30]
[328153757,1716949831951,-427.34999358,0.00032874,30]
[328153759,1716949831963,-343.4955451,0.00032874,30]
[328153762,1716949831974,-363.40445475,0.00032874,30]
[328153764,1716949831984,-291.32554525,0.00032874,30]
[328153765,1716949831995,-299.20635849,0.00032874,30]
[328153766,1716949832004,-234.05,0.00032964,120]
[328153767,1716949832012,-900.0,0.00033,2]
[328153768,1716949832021,-400.0,0.00033047,3]
[328153769,1716949832030,-600.0,0.0003314,2]
[328153770,1716949832040,-3741.23546691,0.000332,2]
[328153771,1716949832051,-1129.15397208,0.000332,2]
[328153772,1716949832062,-716.69464802,0.000332,2]
[328153773,1716949832071,-247.79,0.00033213,2]
[328153774,1716949832080,-416.3,0.00033589,2]
[328153775,1716949832089,-870.87,0.00033589,2]
[328153776,1716949832099,-416.3,0.00033589,2]
[328153777,1716949832107,-157.13,0.00033591,120]
[328153778,1716949832116,-1001.82,0.000337,2]
[328153779,1716949832125,-150.0,0.00033734,2]
[328153780,1716949832133,-150.0,0.00033863,2]
[328153781,1716949832142,-150.0,0.00033863,2]
[328153782,1716949832151,-352.49,0.00033863,2]
[328153783,1716949832159,-150.0,0.00033863,2]
[328153784,1716949832168,-163.78,0.00033863,2]
[328153785,1716949832177,-163.78,0.00033863,2]
[328153786,1716949832186,-150.0,0.00033863,2]
[328153787,1716949832194,-270.57775653,0.00033863,2]
[328153788,1716949832206,-81.91224347,0.00033863,2]
[328153789,1716949832215,-956.41221785,0.00034,4]
[328153798,1716949837819,-48.74142947,0.00034,4]
[328153799,1716949837828,-400.0,0.00034392,2]
[328153800,1716949837838,-592.0,0.00034435,2]
[328153801,1716949837851,-3754.55395062,0.000345,2]
[328153802,1716949837861,-751.46075496,0.000345,2]
[328153803,1716949837870,-1004.51054451,0.000345,2]
[328153804,1716949837879,-250.0,0.000345,2]
[328153805,1716949837889,-600.0,0.000345,2]
[328153806,1716949837898,-500.0,0.000345,2]
[328153807,1716949837907,-592.0,0.0003479,2]
[328153808,1716949837920,-1089.61998701,0.0003499,2]
[328153809,1716949837930,-155.36916986,0.00034998,4]
[328153810,1716949837940,-1609.86486825,0.00035,4]
[328153811,1716949837949,-108.42171302,0.00035,5]
[328153858,1716949840450,-9169.37599857,0.00035,5]
[328153862,1716949840461,-950.0,0.00035,2]
[328153865,1716949840471,-9034.37092272,0.00035,2]
[328153868,1716949840482,-2500.0,0.00035,2]
[328153870,1716949840493,-2533.0,0.00035,2]
[328153872,1716949840503,-150.0,0.00035042,2]
[328153874,1716949840513,-1651.0,0.00035042,2]
[328153876,1716949840524,-216.0,0.00035042,2]
[328153878,1716949840535,-976.003,0.00035042,2]
[328153880,1716949840549,-3167.0,0.00035042,2]
[328153882,1716949840560,-976.0,0.00035042,2]
[328153884,1716949840569,-1468.0,0.00035042,2]
[328153886,1716949840580,-5141.0,0.00035042,2]
[328153888,1716949840590,-289.0,0.00035042,2]
[328153890,1716949840601,-5767.0,0.00035042,2]
[328153892,1716949840611,-445.0,0.00035042,2]
[328153894,1716949840622,-1062.0,0.00035042,2]
[328153896,1716949840632,-592.0,0.00035145,2]
[328153898,1716949840642,-1001.82,0.00035205,2]
[328153900,1716949840653,-7166.0064,0.00035228,2]
[328153902,1716949840663,-1133.51955564,0.000353,2]
[328153904,1716949840674,-2500.0,0.000353,2]
[328153906,1716949840685,-1133.51955559,0.00035314,2]
[328153908,1716949840694,-1133.51955559,0.00035329,2]
[328153910,1716949840704,-1133.51955559,0.00035343,2]
[328153912,1716949840715,-1133.51955559,0.00035357,2]
[328153914,1716949840726,-1133.51955559,0.00035371,2]
[328153916,1716949840736,-1133.51955559,0.00035386,2]
[328153918,1716949840746,-2103.53,0.00035397,3]
[328153920,1716949840756,-152.0,0.00035399,3]
[328153922,1716949840767,-19048.9727,0.00035399,2]
[328153924,1716949840777,-500.0,0.00035399,8]
[328153926,1716949840788,-3899.68,0.00035399,8]
[328153928,1716949840801,-34076.4525,0.000354,2]
[328153930,1716949840810,-178861.89079507,0.000354,2]
[328153931,1716949840822,-954.51740152,0.000354,2]
[328153932,1716949841481,-808.0,0.00035042,2]
[328153933,1716949841491,-636.83488215,0.000354,2]
[328153934,1716949841503,-1578.71698897,0.000354,2]
[328153935,1716949841687,-9967.07855386,0.000354,2]
[328153976,1716949844014,-690.0,0.000354,2]
[328153987,1716949844879,-8103.88287174,0.000354,2]
[328153990,1716949844891,-1002.96075702,0.000354,2]
[328153991,1716949844903,-300.0,0.000354,2]
[328153992,1716949844915,-840.00000001,0.000354,2]
[328153994,1716949844929,-500.0,0.000354,2]
[328153997,1716949844941,-1418.56265053,0.000354,2]
[328153998,1716949844956,-4704.000003,0.000354,2]
[328153999,1716949844967,-4697.88961838,0.000354,2]
[328154000,1716949844978,-777.87029025,0.000354,2]
[328154001,1716949844990,-1407.0,0.000354,2]
[328154002,1716949845001,-261.75726878,0.000354,2]
[328154003,1716949845013,-812.2800005,0.000354,2]
[328154004,1716949845026,-1048.02445104,0.000354,2]
[328154006,1716949853855,1969.27791077,0.00013973,2]
[328154007,1716949858080,361.31647966,0.0001048,2]
[328154019,1716950023874,1294672.91877283,0.00013,2]
[328154022,1716950196290,302921.55065066,0.00013,2]
[328154023,1716950227515,974.4873849,0.00015,2]
[328154025,1716950298924,158.44,0.00013973,2]
[328154034,1716950893244,164.82,0.00013973,2]
[328154084,1716951032169,-713.20491608,0.00017225,2]
[328154085,1716951032186,-2015.36080115,0.00017225,2]
[328154086,1716951032195,-150.0,0.00019451,2]
[328154087,1716951032206,-750.0,0.00027,2]
[328154088,1716951032216,-155.0,0.0003,2]
[328154089,1716951032225,-230.19730632,0.0003,2]
[328154090,1716951032235,-178.23853638,0.00031,2]
[328154091,1716951032245,-277.2,0.00032068,2]
[328154092,1716951032255,-1732.09,0.00032392,15]
[328154093,1716951032265,-501.32663182,0.000329,2]
[328154094,1716951032275,-332.49598132,0.00033,120]
[328154095,1716951032285,-156.84,0.000335,3]
[328154096,1716951032295,-4720.8165682,0.00033565,5]
[328154097,1716951032304,-996.78,0.000337,2]
[328154098,1716951032313,-288.04,0.00033744,2]
[328154099,1716951032322,-150.0,0.0003381,2]
[328154100,1716951032334,-250.0,0.0003382,115]
[328154101,1716951032343,-156.0,0.00033823,120]
[328154102,1716951032352,-537.38,0.00033828,2]
[328154103,1716951032361,-250.0,0.00033898,2]
[328154104,1716951032371,-156.84,0.00034,3]
[328154105,1716951032380,-195.04,0.00034055,120]
[328154106,1716951032390,-277.2,0.00034332,2]
[328154107,1716951032399,-156.84,0.000344,3]
[328154108,1716951032408,-479.0,0.00034435,2]
[328154109,1716951032417,-1000.0,0.00034467,2]
[328154110,1716951032426,-479.0,0.0003479,2]
[328154111,1716951032436,-156.84,0.000349,4]
[328154112,1716951032445,-9277.79771159,0.00035,5]
[328154113,1716951032455,-1609.86486825,0.00035,4]
[328154114,1716951032464,-1018.4137842,0.00035,15]
[328154115,1716951032473,-500.0,0.00035,120]
[328154116,1716951032483,-3269.93236863,0.00035049,2]
[328154117,1716951032492,-2643.4025,0.0003505,2]
[328154118,1716951032501,-218.804,0.00035113,2]
[328154119,1716951032510,-2399.0,0.00035113,2]
[328154120,1716951032520,-150.0,0.00035113,2]
[328154121,1716951032529,-165.0,0.00035113,2]
[328154122,1716951032538,-3157.592,0.00035113,2]
[328154123,1716951032547,-5141.0,0.00035113,2]
[328154124,1716951032557,-867.42,0.00035113,2]
[328154125,1716951032566,-479.0,0.00035145,2]
[328154126,1716951032576,-1581.87079265,0.00035232,6]
[328154127,1716951032586,-233.05715025,0.00035299,120]
[328154128,1716951032595,-3154.0,0.000353,20]
[328154129,1716951032604,-14181.3792,0.000353,2]
[328154130,1716951032614,-156.84,0.000353,4]
[328154131,1716951032623,-156.84,0.000353,4]
[328154132,1716951032632,-156.84,0.000353,4]
[328154133,1716951032644,-156.84,0.000353,4]
[328154134,1716951032654,-156.84,0.000353,4]
[328154135,1716951032663,-6594.6492,0.00035376,2]
[328154136,1716951032672,-221.0061,0.00035376,2]
[328154137,1716951032682,-346.3318,0.00035376,2]
[328154138,1716951032691,-11491.754,0.00035376,2]
[328154139,1716951032700,-166.13627033,0.00035376,10]
[328154140,1716951032709,-166.13627032,0.00035379,10]
[328154141,1716951032719,-166.13627032,0.00035383,10]
[328154142,1716951032728,-166.13627032,0.00035386,10]
[328154143,1716951032738,-166.13627032,0.0003539,10]
[328154144,1716951032748,-166.13627032,0.00035393,10]
[328154145,1716951032758,-166.13627032,0.00035397,10]
[328154146,1716951032767,-1402.44,0.00035397,2]
[328154147,1716951032777,-695.32106991,0.00035399,3]
[328154148,1716951032786,-203.89422097,0.00035399,8]
[328154149,1716951032795,-775.99650454,0.00035399,2]
[328154150,1716951032805,-200.0,0.000354,2]
[328154151,1716951032815,-166.13627032,0.000354,10]
[328154152,1716951032825,-354.0,0.000354,2]
[328154153,1716951032835,-1000.0,0.000354,2]
[328154154,1716951032844,-11604.32610441,0.000354,8]
[328154155,1716951032853,-24501.66332193,0.000354,2]
[328154156,1716951032862,-150.0,0.000354,8]
[328154157,1716951032871,-224.0,0.000354,2]
[328154158,1716951032880,-1296.278155,0.000354,2]
[328154159,1716951032889,-1854.311195,0.0003546,2]
[328154160,1716951032898,-1148.8575443,0.00035476,2]
[328154161,1716951032908,-983.7565856,0.00035476,2]
[328154162,1716951032917,-818.655627,0.00035476,2]
[328154163,1716951032926,-653.5546683,0.00035476,2]
[328154164,1716951032935,-488.4537096,0.00035476,2]
[328154165,1716951032944,-1447.0534823,0.00035476,2]
[328154166,1716951032953,-1239.0991381,0.00035476,2]
[328154167,1716951032962,-1031.1447939,0.00035476,2]
[328154168,1716951032971,-823.1904498,0.00035476,2]
[328154169,1716951032980,-615.2361056,0.00035476,2]
[328154170,1716951032989,-960.8111516,0.00035476,2]
[328154171,1716951032998,-823.9668859,0.00035476,2]
[328154172,1716951033007,-687.1226202,0.00035476,2]
[328154173,1716951033016,-550.2783545,0.00035476,2]
[328154174,1716951033025,-413.4340888,0.00035476,2]
[328154175,1716951033034,-16743.9290165,0.00035476,2]
[328154176,1716951033043,-14359.1620755,0.00035476,2]
[328154177,1716951033052,-11974.3951346,0.00035476,2]
[328154178,1716951033061,-9589.6281936,0.00035476,2]
[328154179,1716951033070,-7204.8612527,0.00035476,2]
[328154180,1716951033080,-5606.42341878,0.00035498,4]
[328154181,1716951033089,-5204.7523009,0.00035498,4]
[328154182,1716951033099,-4192.73282206,0.00035498,2]
[328154183,1716951033108,-500.0,0.00035498,8]
[328154184,1716951033117,-6746.17,0.00035498,8]
[328154185,1716951033126,-19228.31875057,0.00035499,4]
[328154186,1716951033135,-1058.29277758,0.00035499,30]
[328154187,1716951033145,-2016.0269,0.00035499,2]
[328154188,1716951033154,-500.0,0.00035499,8]
[328154189,1716951033166,-500.0,0.00035499,8]
[328154190,1716951033178,-500.0,0.00035499,8]
[328154191,1716951033187,-500.0,0.00035499,8]
[328154192,1716951033196,-500.0,0.00035499,8]
[328154193,1716951033206,-500.0,0.00035499,8]
[328154194,1716951033216,-500.0,0.00035499,8]
[328154195,1716951033225,-554.7819093,0.00035499,8]
[328154196,1716951033234,-6746.17,0.00035499,8]
[328154197,1716951033246,-6746.17,0.00035499,8]
[328154198,1716951033255,-6746.17,0.00035499,8]
[328154199,1716951033264,-6746.17,0.00035499,8]
[328154200,1716951033274,-6746.17,0.00035499,8]
[328154201,1716951033284,-6746.17,0.00035499,8]
[328154202,1716951033293,-6746.17,0.00035499,8]
[328154203,1716951033302,-6746.17,0.00035499,8]
[328154204,1716951033312,-6746.17,0.00035499,8]
[328154205,1716951033321,-6746.17,0.00035499,8]
[328154206,1716951033331,-4738.90465627,0.00035499,8]
[328154207,1716951033344,-1933.2137905,0.00035499,8]
[328154208,1716951033355,-74.05155323,0.00035499,8]
[328154209,1716951033364,-6670.59763137,0.00035499,8]
[328154210,1716951033375,-75.57236863,0.00035499,8]
[328154211,1716951033384,-1401.37228199,0.00035499,8]
[328154212,1716951033395,-500.0,0.00035499,8]
[328154213,1716951037987,-555.57136104,0.00035499,8]
[328154214,1716951037999,-1728.72368233,0.00035499,8]
[328154215,1716951038011,-1464.43317001,0.00035499,8]
[328154216,1716951038300,-443.83778674,0.00035499,8]
[328154217,1716951038313,-652.23171789,0.00035499,8]
[328154218,1716951038322,-6746.17,0.00035499,8]
[328154219,1716951038333,-6746.17,0.00035499,8]
[328154220,1716951038344,-6746.17,0.00035499,8]
[328154221,1716951038355,-6746.17,0.00035499,8]
[328154222,1716951038365,-6746.17,0.00035499,8]
[328154223,1716951038374,-6746.17,0.00035499,8]
[328154224,1716951038394,-6746.17,0.00035499,8]
[328154225,1716951038405,-6746.17,0.00035499,8]
[328154226,1716951038415,-6746.17,0.00035499,8]
[328154227,1716951038425,-6746.2408052,0.00035499,8]
[328154228,1716951038435,-314.0,0.000355,5]
[328154229,1716951038444,-1678.18068379,0.000355,5]
[328154230,1716951038453,-9089.40954498,0.000355,11]
[328154231,1716951038463,-331768.92767011,0.000355,5]
[328154232,1716951038476,-1113.46114593,0.000355,5]
[328154233,1716951038487,-59987.47659793,0.000355,5]
[328154234,1716951038498,-8082.95781921,0.000355,5]
[328154235,1716951038510,-657.76259654,0.000355,5]
[328154236,1716951038521,-536.49681359,0.000355,5]
[328154237,1716951038532,-3700.62304756,0.000355,5]
[328154238,1716951038544,-11181.0,0.000355,5]
[328154239,1716951038556,-6146.64666196,0.000355,5]
[328154249,1716951040795,-7549.23484708,0.000355,5]
[328154250,1716951041663,-283.47181061,0.000329,2]
[328154252,1716951041992,-717.52818939,0.000329,2]
[328154253,1716951042002,-8766.66419575,0.000355,5]
[328154274,1716951043190,-482247.57000002,0.000355,5]
[328154486,1716951056881,1496.30241335,0.00013973,2]
[328154489,1716951430196,656.49269712,0.00013694,2]
[328154490,1716951437252,174.71,0.00013973,2]
[328154491,1716951730028,-300.0,0.00017125,2]
[328154690,1716951905243,155.23,0.00013973,2]
[328154728,1716952234814,-1848.61575999,0.00025,2]
[328154730,1716952234826,-4253.28735301,0.00025,2]
[328154731,1716952234837,-367.67329241,0.00025,2]
[328154732,1716952234849,-1537.8761664,0.00025,2]
[328154733,1716952234859,-1261.0,0.000308,4]
[328154734,1716952234869,-461.0,0.000308,4]
[328154735,1716952234879,-257.26,0.0003173,2]
[328154736,1716952234889,-250.0,0.000329,2]
[328154737,1716952234898,-1000.0,0.00033584,2]
[328154738,1716952234907,-413.75,0.00033591,2]
[328154739,1716952234917,-499.99,0.00033591,2]
[328154740,1716952234927,-782.31,0.00033652,2]
[328154741,1716952234938,-250.0,0.00033665,2]
[328154742,1716952234948,-5205.17,0.00033675,61]
[328154743,1716952234958,-156.0,0.00033689,120]
[328154744,1716952234967,-601.0,0.000337,2]
[328154745,1716952234977,-501.0,0.000337,2]
[328154746,1716952234986,-569.82546195,0.000337,2]
[328154747,1716952234995,-250.0,0.00033701,115]
[328154748,1716952235005,-2020.92091196,0.00033742,2]
[328154749,1716952235017,-2442.70908804,0.00033742,2]
[328154750,1716952235027,-183.54,0.00033849,2]
[328154751,1716952235037,-288.04,0.00033849,2]
[328154752,1716952235046,-150.0,0.00033883,2]
[328154753,1716952235056,-257.26,0.00033994,2]
[328154754,1716952235065,-162.53,0.00034205,120]
[328154755,1716952235075,-574.0,0.00034435,2]
[328154756,1716952235084,-462.0,0.00034435,2]
[328154757,1716952235094,-155.23,0.00034475,2]
[328154758,1716952235105,-158.83820899,0.000345,30]
[328154759,1716952235114,-574.0,0.0003479,2]
[328154760,1716952235123,-462.0,0.0003479,2]
[328154761,1716952235133,-209.0,0.0003483,2]
[328154763,1716952235143,-3472.95070093,0.0003488,7]
[328154765,1716952235152,-2000.0,0.000349,30]
[328154766,1716952235162,-12680.08031935,0.000349,30]
[328154767,1716952235171,-517.33100304,0.000349,2]
[328154768,1716952235180,-1609.86486825,0.00035,4]
[328154769,1716952235190,-9277.79771159,0.00035,5]
[328154770,1716952235199,-2626.0,0.00035,60]
[328154771,1716952235208,-3269.93236863,0.00035,2]
[328154772,1716952235218,-268.89573254,0.00035,30]
[328154773,1716952235230,-701.46736138,0.00035,30]
[328154774,1716952235243,-1029.63690608,0.00035,30]
[328154775,1716952235252,-517.33100303,0.00035092,2]
[328154776,1716952235262,-574.0,0.00035145,2]
[328154777,1716952235271,-462.0,0.00035145,2]
[328154778,1716952235281,-208.6696949,0.00035283,10]
[328154779,1716952235291,-170.8830209,0.00035283,10]
[328154780,1716952235300,-517.33100303,0.00035283,2]
[328154781,1716952235310,-161.93136511,0.000353,2]
[328154782,1716952235319,-161.93136508,0.00035317,2]
[328154783,1716952235328,-161.93136508,0.00035333,2]
[328154784,1716952235338,-161.93136508,0.0003535,2]
[328154786,1716952235348,-1000.0,0.00035351,2]
[328154788,1716952235358,-161.93136508,0.00035367,2]
[328154790,1716952235367,-1270.83865544,0.00035376,2]
[328154792,1716952235378,-2121.37763752,0.00035376,2]
[328154793,1716952235390,-1339.63551131,0.00035376,2]
[328154794,1716952235401,-3971.0701764,0.00035376,2]
[328154795,1716952235412,-5039.98851017,0.00035376,2]
[328154796,1716952235423,-12464.74970916,0.00035376,2]
[328154797,1716952235433,-500.0,0.00035376,2]
[328154798,1716952235442,-66900.49249714,0.00035376,2]
[328154799,1716952235453,-38882.41248337,0.00035376,2]